[Event "Mitropa Online Cup Women 2021"]
[Site "Hybrid"]
[Date "2021.05.04"]
[Round "2.17"]
[White "Hakimifard, Ghazal"]
[Black "Cvitan, Ena"]
[Result "0-1"]
[ECO "B17"]
[WhiteElo "2265"]
[BlackElo "2263"]
[Annotator "NA"]
[PlyCount "98"]
[EventDate "2021.05.04"]
[EventType "team-tourn"]
[EventCountry "NET"]
[SourceTitle "playchess.com"]
[Source "ChessBase"]
[SourceQuality "1"]
[WhiteTeam "Switzerland"]
[BlackTeam "Croatia"]
[WhiteTeamCountry "SUI"]
[BlackTeamCountry "CRO"]
[TimeControl "40/5400+30:1800+30"]

1. e4 {[%emt 0:00:00]} c6 {[%emt 0:00:17]} 2. d4 {[%emt 0:00:08]} d5 {[%emt 0:00:04]} 3. Nd2 {[%emt 0:00:06]} dxe4 {[%emt 0:00:14]} 4. Nxe4 {[%emt 0:00:04]} Nd7 {[%emt 0:00:41]} 5. Bc4 {[%emt 0:00:25]} Ngf6 {[%emt 0:15:00]} 6. Ng5 {[%emt 0:00:14]} e6 {[%emt 0:00:28]} 7. Qe2 {[%emt 0:00:17]} Nb6 {[%emt 0:07:20]} 8. Bd3 {[%emt 0:00:09]} h6 {[%emt 0:02:30]} 9. N5f3 {[%emt 0:00:04]} Nbd7 {[%emt 0:08:46]} 10. Ne5 {[%emt 0:03:48]} Nxe5 {[%emt 0:02:48]} 11. dxe5 {[%emt 0:01:57]} Nd7 {[%emt 0:00:07]} 12. Bf4 {[%emt 0:17:36]} Nc5 {[%emt 0:05:54]} 13. O-O-O {[%emt 0:03:24]} Bd7 {[%emt 0:03:17]} 14. Nf3 {[%emt 0:07:48]} Qc7 {[%emt 0:03:07]} 15. Nd2 {[%emt 0:03:38]} Nxd3+ {[%emt 0:02:55]} 16. Qxd3 {[%emt 0:00:06]} O-O-O {[%emt 0:02:07]} 17. Nc4 {[%emt 0:03:48]} Kb8 {[%emt 0:08:51]} 18. h4 {[%emt 0:02:33]} Be7 {[%emt 0:06:54]} 19. Qc3 {[%emt 0:06:10]} Rhg8 {[%emt 0:07:36]} 20. h5 {[%emt 0:02:14]} f5 {[%emt 0:02:14]} 21. Rh3 {[%emt 0:08:35]} c5 {[%emt 0:01:15]} 22. Nd6 {[%emt 0:10:56]} Bc6 {[%emt 0:00:56]} 23. Qxc5 {[%emt 0:04:04]} Bxg2 {[%emt 0:00:51]} 24. Qxc7+ {[%emt 0:00:06]} Kxc7 {[%emt 0:00:03]} 25. Rg3 {[%emt 0:00:16]} Bc6 {[%emt 0:00:20]} 26. Rdg1 {[%emt 0:00:18]} g5 {[%emt 0:06:04]} 27. hxg6 {[%emt 0:00:19]} Bh4 {[%emt 0:00:49]} 28. Rh3 {[%emt 0:04:29]} Bxf2 {[%emt 0:00:31]} 29. Rf1 {[%emt 0:00:05]} Bc5 {[%emt 0:01:33]} 30. Rxh6 {[%emt 0:00:13]} Rg7 {[%emt 0:01:43]} 31. c3 {[%emt 0:08:17]} a5 {[%emt 0:01:37]} 32. Nf7 {[%emt 0:05:33]} Rdg8 {[%emt 0:00:50]} 33. Bg5 {[%emt 0:00:21]} Rxg6 {[%emt 0:02:09]} 34. Rxg6 {[%emt 0:00:02]} Rxg6 {[%emt 0:00:04]} 35. Bd8+ {[%emt 0:00:02]} Kd7 {[%emt 0:01:26]} 36. Bxa5 {[%emt 0:00:09]} Rg1 {[%emt 0:02:43]} 37. Rd1+ {[%emt 0:06:36]} Rxd1+ {[%emt 0:00:51]} 38. Kxd1 {[%emt 0:00:01]} f4 {[%emt 0:00:01]} 39. b4 {[%emt 0:00:35]} Be3 {[%emt 0:02:13]} 40. Ke2 {[%emt 0:00:00]} b6 {[%emt 0:00:00]} 41. Bxb6 {[%emt 0:03:26]} Bxb6 {[%emt 0:03:31]} 42. Ng5 {[%emt 0:00:43]} Bc7 {[%emt 0:02:25]} 43. c4 {[%emt 0:00:27]} Bxe5 {[%emt 0:03:23]} 44. b5 {[%emt 0:00:05]} Bg2 {[%emt 0:04:49]} 45. a4 {[%emt 0:02:53]} Bd4 {[%emt 0:04:04]} 46. a5 {[%emt 0:03:15]} Bc3 {[%emt 0:03:28]} 47. Kf2 {[%emt 0:01:35]} Bh1 {[%emt 0:00:51]} 48. a6 {[%emt 0:01:17]} Bd4+ {[%emt 0:00:35]} 49. Ke2 {[%emt 0:00:02]} Bg2 {[%emt 0:00:44]} 0-1

[Event "Mitropa Online Cup Women 2021"]
[Site "Hybrid"]
[Date "2021.05.04"]
[Round "2.18"]
[White "Medic, Mirjana"]
[Black "Mueller-Seps, Monika"]
[Result "1/2-1/2"]
[ECO "E62"]
[WhiteElo "2147"]
[BlackElo "2243"]
[Annotator "NA"]
[PlyCount "69"]
[EventDate "2021.05.04"]
[EventType "team-tourn"]
[EventCountry "NET"]
[SourceTitle "playchess.com"]
[Source "ChessBase"]
[SourceQuality "1"]
[WhiteTeam "Croatia"]
[BlackTeam "Switzerland"]
[WhiteTeamCountry "CRO"]
[BlackTeamCountry "SUI"]
[TimeControl "40/5400+30:1800+30"]

1. d4 {[%emt 0:00:00]} Nf6 {[%emt 0:00:10]} 2. Nf3 {[%emt 0:00:13]} g6 {[%emt 0:00:11]} 3. c4 {[%emt 0:00:08]} Bg7 {[%emt 0:00:09]} 4. g3 {[%emt 0:00:04]} O-O {[%emt 0:00:10]} 5. Bg2 {[%emt 0:00:04]} d6 {[%emt 0:00:07]} 6. O-O {[%emt 0:00:07]} c6 {[%emt 0:00:09]} 7. Nc3 {[%emt 0:00:20]} Qb6 {[%emt 0:00:11]} 8. b3 {[%emt 0:03:32]} e5 {[%emt 0:01:04]} 9. dxe5 {[%emt 0:14:41]} dxe5 {[%emt 0:00:13]} 10. e4 {[%emt 0:02:59]} Bg4 {[%emt 0:00:47]} 11. Be3 {[%emt 0:03:45]} Qc7 {[%emt 0:01:17]} 12. Qc2 {[%emt 0:07:36]} Bxf3 {[%emt 0:01:30]} 13. Bxf3 {[%emt 0:03:26]} Nbd7 {[%emt 0:00:17]} 14. Rad1 {[%emt 0:07:56]} Rfd8 {[%emt 0:01:24]} 15. Bg2 {[%emt 0:02:21]} h5 {[%emt 0:10:10]} 16. Bh3 {[%emt 0:11:27]} Nf8 {[%emt 0:05:00]} 17. Rxd8 {[%emt 0:11:59]} Rxd8 {[%emt 0:17:35]} 18. Rd1 {[%emt 0:00:52]} Ng4 {[%emt 0:16:40]} 19. Rxd8 {[%emt 0:08:36]} Qxd8 {[%emt 0:00:22]} 20. Bxa7 {[%emt 0:04:25]} Ne6 {[%emt 0:03:26]} 21. Bxg4 {[%emt 0:01:52]} hxg4 {[%emt 0:01:50]} 22. Be3 {[%emt 0:00:10]} Nd4 {[%emt 0:02:41]} 23. Qc1 {[%emt 0:05:21]} Kh7 {[%emt 0:14:27]} 24. Kg2 {[%emt 0:00:26]} Qd7 {[%emt 0:00:41]} 25. Qd2 {[%emt 0:02:24]} Qe6 {[%emt 0:04:42]} 26. Na4 {[%emt 0:03:51]} Qf6 {[%emt 0:03:27]} 27. Qd1 {[%emt 0:00:07]} Nf3 {[%emt 0:03:56]} 28. Nc5 {[%emt 0:01:00]} g5 {[%emt 0:08:21]} 29. Qd7 {[%emt 0:01:46]} Qh6 {[%emt 0:00:57]} 30. h4 {[%emt 0:02:15]} gxh3+ {[%emt 0:00:42]} 31. Qxh3 {[%emt 0:01:02]} Ne1+ {[%emt 0:00:04]} 32. Kh2 {[%emt 0:00:03]} Nf3+ {[%emt 0:00:03]} 33. Kg2 {[%emt 0:00:03]} Ne1+ {[%emt 0:00:10]} 34. Kh2 {[%emt 0:00:03]} Nf3+ {[%emt 0:00:04]} 35. Kg2 {[%emt 0:00:04]} 1/2-1/2

[Event "Mitropa Online Cup Women 2021"]
[Site "Hybrid"]
[Date "2021.05.04"]
[Round "2.19"]
[White "Heinatz, Gundula"]
[Black "Vujnovic, Patricija"]
[Result "0-1"]
[ECO "D00"]
[WhiteElo "2131"]
[BlackElo "2129"]
[Annotator "NA"]
[PlyCount "103"]
[EventDate "2021.05.04"]
[EventType "team-tourn"]
[EventCountry "NET"]
[SourceTitle "playchess.com"]
[Source "ChessBase"]
[SourceQuality "1"]
[WhiteTeam "Switzerland"]
[BlackTeam "Croatia"]
[WhiteTeamCountry "SUI"]
[BlackTeamCountry "CRO"]
[TimeControl "40/5400+30:1800+30"]

1. d4 {[%emt 0:00:00]} d5 {[%emt 0:00:10]} 2. Bf4 {[%emt 0:00:20]} e6 {[%emt 0:00:15]} 3. e3 {[%emt 0:00:51]} Bd6 {[%emt 0:00:15]} 4. Bxd6 {[%emt 0:02:10]} Qxd6 {[%emt 0:00:16]} 5. Qg4 {[%emt 0:00:13]} Kf8 {[%emt 0:10:34]} 6. Nd2 {[%emt 0:03:26]} Nf6 {[%emt 0:00:14]} 7. Qh4 {[%emt 0:03:10]} Nc6 {[%emt 0:02:36]} 8. Ngf3 {[%emt 0:06:17]} e5 {[%emt 0:05:46]} 9. dxe5 {[%emt 0:02:38]} Nxe5 {[%emt 0:00:07]} 10. Nxe5 {[%emt 0:02:23]} Qxe5 {[%emt 0:00:08]} 11. O-O-O {[%emt 0:06:56]} c6 {[%emt 0:00:47]} 12. Bd3 {[%emt 0:05:50]} a5 {[%emt 0:07:37]} 13. e4 {[%emt 0:06:03]} Be6 {[%emt 0:20:32]} 14. Rhe1 {[%emt 0:08:05]} d4 {[%emt 0:06:02]} 15. Nf3 {[%emt 0:11:31]} Qc5 {[%emt 0:03:10]} 16. e5 {[%emt 0:01:00]} Nd5 {[%emt 0:04:30]} 17. Nxd4 {[%emt 0:03:36]} a4 {[%emt 0:02:47]} 18. Nxe6+ {[%emt 0:10:28]} fxe6 {[%emt 0:00:08]} 19. a3 {[%emt 0:04:47]} b5 {[%emt 0:03:33]} 20. Be4 {[%emt 0:02:46]} Ke8 {[%emt 0:03:55]} 21. Bxd5 {[%emt 0:04:30]} cxd5 {[%emt 0:00:17]} 22. Re3 {[%emt 0:00:24]} Qe7 {[%emt 0:01:16]} 23. Qg4 {[%emt 0:01:15]} Rf8 {[%emt 0:02:37]} 24. f3 {[%emt 0:00:29]} Kf7 {[%emt 0:02:16]} 25. Qb4 {[%emt 0:00:36]} Qxb4 {[%emt 0:03:44]} 26. axb4 {[%emt 0:00:09]} Rfc8 {[%emt 0:00:19]} 27. Rd4 {[%emt 0:00:28]} Ra7 {[%emt 0:01:30]} 28. Kd2 {[%emt 0:00:20]} Rac7 {[%emt 0:00:18]} 29. c3 {[%emt 0:00:07]} Ra8 {[%emt 0:01:51]} 30. Rdd3 {[%emt 0:02:41]} a3 {[%emt 0:01:22]} 31. bxa3 {[%emt 0:00:29]} Rxa3 {[%emt 0:00:06]} 32. Re2 {[%emt 0:00:19]} Rb3 {[%emt 0:03:43]} 33. h4 {[%emt 0:00:40]} h5 {[%emt 0:01:19]} 34. g3 {[%emt 0:00:39]} Rc6 {[%emt 0:01:57]} 35. Rf2 {[%emt 0:01:54]} Kg6 {[%emt 0:03:15]} 36. g4 {[%emt 0:02:06]} Rc4 {[%emt 0:05:58]} 37. gxh5+ {[%emt 0:02:16]} Kxh5 {[%emt 0:00:16]} 38. f4 {[%emt 0:01:57]} Rb2+ {[%emt 0:00:20]} 39. Ke1 {[%emt 0:00:13]} Rxf2 {[%emt 0:00:25]} 40. Kxf2 {[%emt 0:00:00]} Rxf4+ {[%emt 0:00:00]} 41. Kg2 {[%emt 0:04:49]} Kxh4 {[%emt 0:04:06]} 42. Rh3+ {[%emt 0:00:47]} Kg5 {[%emt 0:00:35]} 43. Rh8 {[%emt 0:00:28]} Kf5 {[%emt 0:04:08]} 44. Rb8 {[%emt 0:00:09]} Rc4 {[%emt 0:00:24]} 45. Rxb5 {[%emt 0:00:07]} Rxc3 {[%emt 0:00:06]} 46. Rb7 {[%emt 0:00:09]} g5 {[%emt 0:00:06]} 47. b5 {[%emt 0:00:53]} Rb3 {[%emt 0:00:12]} 48. b6 {[%emt 0:00:26]} Kxe5 {[%emt 0:00:11]} 49. Kf2 {[%emt 0:00:05]} Ke4 {[%emt 0:02:16]} 50. Rg7 {[%emt 0:01:10]} Rb2+ {[%emt 0:00:52]} 51. Ke1 {[%emt 0:01:18]} Rxb6 {[%emt 0:00:18]} 52. Rg6 {[%emt 0:00:06]} 0-1

[Event "Mitropa Online Cup Women 2021"]
[Site "Hybrid"]
[Date "2021.05.04"]
[Round "2.20"]
[White "Spiranec, Noemi"]
[Black "Hund, Sarah"]
[Result "1/2-1/2"]
[ECO "D34"]
[WhiteElo "2098"]
[BlackElo "2049"]
[Annotator "NA"]
[PlyCount "77"]
[EventDate "2021.05.04"]
[EventType "team-tourn"]
[EventCountry "NET"]
[SourceTitle "playchess.com"]
[Source "ChessBase"]
[SourceQuality "1"]
[WhiteTeam "Croatia"]
[BlackTeam "Switzerland"]
[WhiteTeamCountry "CRO"]
[BlackTeamCountry "SUI"]
[TimeControl "40/5400+30:1800+30"]

1. d4 {[%emt 0:00:00]} d5 {[%emt 0:00:14]} 2. c4 {[%emt 0:00:10]} e6 {[%emt 0:00:18]} 3. Nc3 {[%emt 0:01:42]} c5 {[%emt 0:00:41]} 4. Nf3 {[%emt 0:01:01]} Nc6 {[%emt 0:01:07]} 5. cxd5 {[%emt 0:01:21]} exd5 {[%emt 0:00:28]} 6. g3 {[%emt 0:03:27]} Nf6 {[%emt 0:01:54]} 7. Bg2 {[%emt 0:00:31]} Be7 {[%emt 0:00:26]} 8. O-O {[%emt 0:00:48]} O-O {[%emt 0:00:34]} 9. dxc5 {[%emt 0:04:42]} Bxc5 {[%emt 0:00:52]} 10. Bg5 {[%emt 0:00:28]} d4 {[%emt 0:01:05]} 11. Bxf6 {[%emt 0:02:21]} Qxf6 {[%emt 0:01:03]} 12. Ne4 {[%emt 0:01:12]} Qe7 {[%emt 0:00:58]} 13. Nxc5 {[%emt 0:00:07]} Qxc5 {[%emt 0:00:13]} 14. Rc1 {[%emt 0:00:12]} Qb6 {[%emt 0:01:25]} 15. Qd2 {[%emt 0:04:50]} Be6 {[%emt 0:03:05]} 16. b3 {[%emt 0:08:46]} Rfd8 {[%emt 0:07:05]} 17. Rfd1 {[%emt 0:03:56]} a5 {[%emt 0:08:48]} 18. Ng5 {[%emt 0:07:51]} Bf5 {[%emt 0:09:35]} 19. Qf4 {[%emt 0:02:47]} Bg6 {[%emt 0:02:11]} 20. Be4 {[%emt 0:02:24]} f6 {[%emt 0:06:54]} 21. Ne6 {[%emt 0:07:59]} Rd7 {[%emt 0:02:51]} 22. Bxc6 {[%emt 0:05:15]} bxc6 {[%emt 0:00:53]} 23. Rxd4 {[%emt 0:00:10]} Re7 {[%emt 0:10:33]} 24. Rd6 {[%emt 0:01:40]} Rae8 {[%emt 0:07:45]} 25. Rcxc6 {[%emt 0:03:21]} Qb5 {[%emt 0:01:34]} 26. Nd4 {[%emt 0:02:59]} Qh5 {[%emt 0:02:13]} 27. Re6 {[%emt 0:01:10]} Rxe6 {[%emt 0:03:53]} 28. Rxe6 {[%emt 0:00:09]} Rxe6 {[%emt 0:00:49]} 29. Nxe6 {[%emt 0:00:45]} Qxe2 {[%emt 0:01:02]} 30. Qe3 {[%emt 0:03:02]} Qxa2 {[%emt 0:04:37]} 31. Nc5 {[%emt 0:04:32]} Qb1+ {[%emt 0:05:35]} 32. Kg2 {[%emt 0:00:18]} Qf5 {[%emt 0:00:53]} 33. Qe6+ {[%emt 0:00:42]} Qxe6 {[%emt 0:01:59]} 34. Nxe6 {[%emt 0:00:07]} Kf7 {[%emt 0:01:20]} 35. Nd4 {[%emt 0:01:24]} Be4+ {[%emt 0:03:12]} 36. Kf1 {[%emt 0:02:08]} Ke7 {[%emt 0:01:11]} 37. Ke2 {[%emt 0:00:32]} Kd6 {[%emt 0:00:48]} 38. Kd2 {[%emt 0:01:40]} Bd5 {[%emt 0:02:03]} 39. Kd3 {[%emt 0:01:31]} 1/2-1/2

[Event "Mitropa Online Cup Women 2021"]
[Site "Hybrid"]
[Date "2021.05.04"]
[Round "3.3"]
[White "Petrova, Kristyna"]
[Black "Zimina, Olga"]
[Result "0-1"]
[ECO "E20"]
[WhiteElo "2303"]
[BlackElo "2354"]
[Annotator "RC"]
[PlyCount "142"]
[EventDate "2021.05.04"]
[EventType "team-tourn"]
[EventCountry "NET"]
[SourceTitle "playchess.com"]
[Source "ChessBase"]
[SourceQuality "1"]
[WhiteTeam "Czech Republic"]
[BlackTeam "Italy"]
[WhiteTeamCountry "CZE"]
[BlackTeamCountry "ITA"]
[TimeControl "40/5400+30:1800+30"]

1. d4 {[%emt 0:00:00]} Nf6 {[%emt 0:01:54]} 2. c4 {[%emt 0:00:15]} e6 {[%emt 0:00:24]} 3. Nc3 {[%emt 0:00:11]} Bb4 {[%emt 0:01:06]} 4. f3 {[%emt 0:01:30]} c5 {[%emt 0:02:17]} 5. a3 {[%emt 0:06:23]} Ba5 {[%emt 0:00:51]} 6. dxc5 {[%emt 0:37:36]} Bxc3+ {[%emt 0:02:40]} 7. bxc3 {[%emt 0:00:06]} Qa5 {[%emt 0:08:43]} 8. Qb3 {[%emt 0:11:58]} Na6 {[%emt 0:06:56]} 9. Be3 {[%emt 0:00:18]} O-O {[%emt 0:04:08]} 10. Nh3 {[%emt 0:01:21]} d6 {[%emt 0:15:00]} 11. cxd6 {[%emt 0:01:37]} Bd7 {[%emt 0:03:21]} 12. a4 {[%emt 0:03:00]} Rfc8 {[%emt 0:02:50]} 13. Ra3 {[%emt 0:05:28]} b6 {[%emt 0:11:39]} 14. Nf2 {[%emt 0:18:57]} Ne8 {[%emt 0:05:48]} 15. Ne4 {[%emt 0:03:21]} f5 {[%emt 0:01:42]} 16. Nd2 {[%emt 0:00:04]} Nxd6 {[%emt 0:00:53]} 17. g3 {[%emt 0:00:10]} Be8 {[%emt 0:08:53]} 18. f4 {[%emt 0:03:28]} Bc6 {[%emt 0:17:04]} 19. Rg1 {[%emt 0:00:03]} Ne4 {[%emt 0:00:05]} 20. Nxe4 {[%emt 0:00:23]} Bxe4 {[%emt 0:00:07]} 21. Bg2 {[%emt 0:01:38]} Bxg2 {[%emt 0:00:44]} 22. Rxg2 {[%emt 0:00:02]} Rc6 {[%emt 0:00:33]} 23. Qb5 {[%emt 0:00:47]} Rac8 {[%emt 0:00:05]} 24. Qxa5 {[%emt 0:00:06]} bxa5 {[%emt 0:00:04]} 25. Bxa7 {[%emt 0:00:26]} Rxc4 {[%emt 0:00:59]} 26. Bb6 {[%emt 0:01:26]} Rxc3 {[%emt 0:00:05]} 27. Rxc3 {[%emt 0:00:09]} Rxc3 {[%emt 0:00:03]} 28. Bxa5 {[%emt 0:00:02]} Ra3 {[%emt 0:00:23]} 29. g4 {[%emt 0:01:52]} Rxa4 {[%emt 0:00:24]} 30. Bc3 {[%emt 0:00:04]} g6 {[%emt 0:02:29]} 31. gxf5 {[%emt 0:00:23]} exf5 {[%emt 0:00:06]} 32. Be5 {[%emt 0:00:03]} Nc5 {[%emt 0:00:15]} 33. Rg3 {[%emt 0:00:18]} Kf7 {[%emt 0:02:43]} 34. Kf1 {[%emt 0:01:39]} Nd7 {[%emt 0:00:27]} 35. Bd6 {[%emt 0:01:39]} Ke6 {[%emt 0:01:09]} 36. Rd3 {[%emt 0:00:10]} Nf6 {[%emt 0:00:14]} 37. Bb8 {[%emt 0:00:47]} Rb4 {[%emt 0:00:22]} 38. Bd6 {[%emt 0:00:17]} Ra4 {[%emt 0:00:54]} 39. Bb8 {[%emt 0:00:16]} Nd5 {[%emt 0:00:24]} 40. Rh3 {[%emt 0:00:00]} Rb4 {[%emt 0:00:00]} 41. Be5 {[%emt 0:02:52]} Nxf4 {[%emt 0:02:53]} 42. Bxf4 {[%emt 0:00:40]} Rxf4+ {[%emt 0:00:12]} 43. Kg2 {[%emt 0:01:26]} Rg4+ {[%emt 0:02:50]} 44. Kf2 {[%emt 0:00:53]} h5 {[%emt 0:00:28]} 45. Ra3 {[%emt 0:01:21]} Kf6 {[%emt 0:00:36]} 46. Ra6+ {[%emt 0:13:03]} Kg5 {[%emt 0:00:12]} 47. h3 {[%emt 0:01:24]} Rb4 {[%emt 0:03:19]} 48. Kg2 {[%emt 0:04:49]} h4 {[%emt 0:02:43]} 49. Ra3 {[%emt 0:01:11]} Kf4 {[%emt 0:00:46]} 50. Kf2 {[%emt 0:01:44]} g5 {[%emt 0:03:21]} 51. Rf3+ {[%emt 0:00:37]} Ke5 {[%emt 0:02:51]} 52. Re3+ {[%emt 0:00:20]} Re4 {[%emt 0:01:50]} 53. Ra3 {[%emt 0:00:36]} Rf4+ {[%emt 0:03:50]} 54. Kg2 {[%emt 0:04:05]} Rc4 {[%emt 0:00:13]} 55. Kf2 {[%emt 0:01:17]} g4 {[%emt 0:01:50]} 56. hxg4 {[%emt 0:00:56]} fxg4 {[%emt 0:00:09]} 57. Ra8 {[%emt 0:00:07]} Rf4+ {[%emt 0:03:26]} 58. Kg1 {[%emt 0:02:23]} Re4 {[%emt 0:01:59]} 59. Rh8 {[%emt 0:00:44]} g3 {[%emt 0:00:25]} 60. e3 {[%emt 0:00:32]} Ra4 {[%emt 0:01:06]} 61. Rh5+ {[%emt 0:00:18]} Kf6 {[%emt 0:00:23]} 62. Rh8 {[%emt 0:00:25]} Kf5 {[%emt 0:00:35]} 63. Rg8 {[%emt 0:00:38]} Ra1+ {[%emt 0:00:39]} 64. Kg2 {[%emt 0:00:03]} Ra2+ {[%emt 0:00:11]} 65. Kg1 {[%emt 0:00:03]} Re2 {[%emt 0:00:27]} 66. Rg7 {[%emt 0:01:29]} Rxe3 {[%emt 0:00:24]} 67. Kg2 {[%emt 0:00:07]} Re2+ {[%emt 0:00:10]} 68. Kg1 {[%emt 0:00:32]} Kf4 {[%emt 0:00:12]} 69. Rf7+ {[%emt 0:00:56]} Kg4 {[%emt 0:00:08]} 70. Ra7 {[%emt 0:00:18]} Re1+ {[%emt 0:00:08]} 71. Kg2 {[%emt 0:00:02]} h3# {[%emt 0:00:03]} 0-1

[Event "Mitropa Online Cup Women 2021"]
[Site "Hybrid"]
[Date "2021.05.04"]
[Round "3.3"]
[White "Richterova, Natasa"]
[Black "Gueci, Tea"]
[Result "1-0"]
[ECO "D36"]
[WhiteElo "2188"]
[BlackElo "2204"]
[Annotator "RC"]
[PlyCount "111"]
[EventDate "2021.05.04"]
[EventType "team-tourn"]
[EventCountry "NET"]
[SourceTitle "playchess.com"]
[Source "ChessBase"]
[SourceQuality "1"]
[WhiteTeam "Czech Republic"]
[BlackTeam "Italy"]
[WhiteTeamCountry "CZE"]
[BlackTeamCountry "ITA"]
[TimeControl "40/5400+30:1800+30"]

1. d4 {[%emt 0:00:00]} d5 {[%emt 0:00:07]} 2. c4 {[%emt 0:00:10]} e6 {[%emt 0:00:03]} 3. Nc3 {[%emt 0:00:08]} Nf6 {[%emt 0:00:29]} 4. cxd5 {[%emt 0:00:29]} exd5 {[%emt 0:00:07]} 5. Bg5 {[%emt 0:00:13]} Be7 {[%emt 0:01:02]} 6. e3 {[%emt 0:00:33]} c6 {[%emt 0:00:49]} 7. Bd3 {[%emt 0:00:10]} Nbd7 {[%emt 0:00:47]} 8. Nf3 {[%emt 0:01:00]} O-O {[%emt 0:01:18]} 9. O-O {[%emt 0:00:25]} Re8 {[%emt 0:03:02]} 10. Qc2 {[%emt 0:00:57]} g6 {[%emt 0:02:19]} 11. Rab1 {[%emt 0:05:00]} a5 {[%emt 0:03:14]} 12. a3 {[%emt 0:00:18]} Nb6 {[%emt 0:06:08]} 13. Ne5 {[%emt 0:29:46]} Nfd7 {[%emt 0:09:43]} 14. Bxe7 {[%emt 0:01:40]} Qxe7 {[%emt 0:03:15]} 15. Nf3 {[%emt 0:12:20]} Nf6 {[%emt 0:07:53]} 16. Qb3 {[%emt 0:06:18]} Nbd7 {[%emt 0:04:50]} 17. Rbc1 {[%emt 0:05:21]} b5 {[%emt 0:14:07]} 18. Ne2 {[%emt 0:05:05]} Qd6 {[%emt 0:04:39]} 19. Qc2 {[%emt 0:01:07]} Bb7 {[%emt 0:01:42]} 20. Nf4 {[%emt 0:01:07]} Rac8 {[%emt 0:08:29]} 21. Qb1 {[%emt 0:02:50]} Nb6 {[%emt 0:02:10]} 22. h4 {[%emt 0:02:28]} Ne4 {[%emt 0:04:35]} 23. Rfe1 {[%emt 0:09:04]} Nc4 {[%emt 0:02:40]} 24. Qc2 {[%emt 0:07:01]} c5 {[%emt 0:03:26]} 25. dxc5 {[%emt 0:02:27]} Rxc5 {[%emt 0:00:44]} 26. Qe2 {[%emt 0:04:16]} Rec8 {[%emt 0:01:39]} 27. Red1 {[%emt 0:01:20]} Qf6 {[%emt 0:01:13]} 28. Nd4 {[%emt 0:01:02]} Qxh4 {[%emt 0:04:12]} 29. b4 {[%emt 0:00:11]} axb4 {[%emt 0:05:30]} 30. axb4 {[%emt 0:00:06]} R5c7 {[%emt 0:00:19]} 31. Nxb5 {[%emt 0:00:03]} Re7 {[%emt 0:01:44]} 32. Nd4 {[%emt 0:02:11]} Ned6 {[%emt 0:02:49]} 33. Nf3 {[%emt 0:00:30]} Qf6 {[%emt 0:00:18]} 34. Qf1 {[%emt 0:00:44]} Rec7 {[%emt 0:00:37]} 35. Be2 {[%emt 0:00:17]} Nb6 {[%emt 0:00:51]} 36. Rxc7 {[%emt 0:00:04]} Rxc7 {[%emt 0:00:01]} 37. Ba6 {[%emt 0:01:00]} Ba8 {[%emt 0:00:29]} 38. Be2 {[%emt 0:00:23]} Qb2 {[%emt 0:00:34]} 39. Rb1 {[%emt 0:00:10]} Qf6 {[%emt 0:00:50]} 40. Nd4 {[%emt 0:00:00]} Ne4 {[%emt 0:00:00]} 41. Ra1 {[%emt 0:03:53]} Qd8 {[%emt 0:13:02]} 42. Bf3 {[%emt 0:08:25]} Rc4 {[%emt 0:04:23]} 43. b5 {[%emt 0:08:27]} Bb7 {[%emt 0:04:06]} 44. Nd3 {[%emt 0:03:07]} Qc7 {[%emt 0:04:17]} 45. Qd1 {[%emt 0:06:08]} h5 {[%emt 0:02:35]} 46. Nf4 {[%emt 0:02:12]} h4 {[%emt 0:02:09]} 47. Bxe4 {[%emt 0:01:43]} dxe4 {[%emt 0:00:04]} 48. Qg4 {[%emt 0:00:37]} Nd5 {[%emt 0:03:25]} 49. Nxd5 {[%emt 0:00:52]} Bxd5 {[%emt 0:00:06]} 50. Qxh4 {[%emt 0:00:36]} Rb4 {[%emt 0:01:20]} 51. Qg5 {[%emt 0:00:10]} Bb7 {[%emt 0:00:39]} 52. g3 {[%emt 0:00:37]} Qc3 {[%emt 0:00:25]} 53. Qd8+ {[%emt 0:00:42]} Kg7 {[%emt 0:00:06]} 54. Rf1 {[%emt 0:00:03]} Rb2 {[%emt 0:00:32]} 55. Qe7 {[%emt 0:00:10]} Bd5 {[%emt 0:00:13]} 56. Qe5+ {[%emt 0:00:05]} 1-0

[Event "Mitropa Online Cup Women 2021"]
[Site "Hybrid"]
[Date "2021.05.04"]
[Round "3.5"]
[White "Terbe, Zsuzsanna"]
[Black "Hapala, Elisabeth"]
[Result "1-0"]
[ECO "E20"]
[WhiteElo "2186"]
[BlackElo "2120"]
[Annotator "RC"]
[PlyCount "87"]
[EventDate "2021.05.04"]
[EventType "team-tourn"]
[EventCountry "NET"]
[SourceTitle "playchess.com"]
[Source "ChessBase"]
[SourceQuality "1"]
[WhiteTeam "Hungary"]
[BlackTeam "Austria"]
[WhiteTeamCountry "HUN"]
[BlackTeamCountry "AUT"]
[TimeControl "40/5400+30:1800+30"]

1. d4 {[%emt 0:00:00]} Nf6 {[%emt 0:00:07]} 2. c4 {[%emt 0:00:11]} e6 {[%emt 0:00:09]} 3. Nc3 {[%emt 0:01:02]} Bb4 {[%emt 0:00:06]} 4. Bd2 {[%emt 0:00:18]} c5 {[%emt 0:07:01]} 5. a3 {[%emt 0:02:57]} Bxc3 {[%emt 0:01:01]} 6. Bxc3 {[%emt 0:01:07]} Ne4 {[%emt 0:05:13]} 7. Qd3 {[%emt 0:02:52]} Nxc3 {[%emt 0:01:15]} 8. Qxc3 {[%emt 0:02:25]} Qf6 {[%emt 0:12:57]} 9. e3 {[%emt 0:09:45]} b6 {[%emt 0:01:30]} 10. Be2 {[%emt 0:10:36]} Bb7 {[%emt 0:02:29]} 11. Nf3 {[%emt 0:02:47]} O-O {[%emt 0:04:01]} 12. O-O {[%emt 0:00:37]} Nc6 {[%emt 0:20:51]} 13. Rfd1 {[%emt 0:10:37]} Rfd8 {[%emt 0:02:11]} 14. b4 {[%emt 0:06:46]} d6 {[%emt 0:03:45]} 15. Rab1 {[%emt 0:03:47]} Rac8 {[%emt 0:02:01]} 16. Qb3 {[%emt 0:06:40]} cxd4 {[%emt 0:08:05]} 17. exd4 {[%emt 0:02:09]} Ne7 {[%emt 0:03:47]} 18. Rbc1 {[%emt 0:13:12]} Ng6 {[%emt 0:03:07]} 19. Ne1 {[%emt 0:04:19]} Nf4 {[%emt 0:04:56]} 20. Bf3 {[%emt 0:01:08]} Rc7 {[%emt 0:07:23]} 21. g3 {[%emt 0:07:40]} Nh3+ {[%emt 0:00:46]} 22. Kg2 {[%emt 0:01:09]} Bxf3+ {[%emt 0:01:19]} 23. Qxf3 {[%emt 0:01:07]} Qh6 {[%emt 0:02:03]} 24. Qg4 {[%emt 0:02:56]} Nxf2 {[%emt 0:02:48]} 25. Kxf2 {[%emt 0:00:07]} Qxh2+ {[%emt 0:00:03]} 26. Ng2 {[%emt 0:01:18]} Qh6 {[%emt 0:00:11]} 27. Kg1 {[%emt 0:02:10]} Rdc8 {[%emt 0:00:42]} 28. Qf3 {[%emt 0:00:29]} Qg5 {[%emt 0:01:39]} 29. Rc2 {[%emt 0:02:44]} h6 {[%emt 0:01:17]} 30. Ne3 {[%emt 0:00:29]} h5 {[%emt 0:01:11]} 31. Kg2 {[%emt 0:00:38]} a5 {[%emt 0:00:36]} 32. Qf4 {[%emt 0:01:04]} Qe7 {[%emt 0:00:40]} 33. Rh1 {[%emt 0:00:16]} g6 {[%emt 0:00:08]} 34. g4 {[%emt 0:00:35]} g5 {[%emt 0:00:35]} 35. Qf3 {[%emt 0:00:27]} h4 {[%emt 0:00:22]} 36. Re1 {[%emt 0:00:34]} Qd8 {[%emt 0:00:26]} 37. Rf1 {[%emt 0:00:37]} Kg7 {[%emt 0:00:17]} 38. d5 {[%emt 0:00:42]} axb4 {[%emt 0:00:11]} 39. axb4 {[%emt 0:00:11]} b5 {[%emt 0:00:19]} 40. dxe6 {[%emt 0:00:00]} fxe6 {[%emt 0:00:00]} 41. Qe4 {[%emt 0:09:06]} Qd7 {[%emt 0:04:22]} 42. Qd4+ {[%emt 0:04:05]} e5 {[%emt 0:00:31]} 43. Qxd6 {[%emt 0:02:16]} h3+ {[%emt 0:07:18]} 44. Kh2 {[%emt 0:02:24]} 1-0